bitfinex/quotes_ETHUSD_20241116
["timestamp","ask_amount","ask_price","bid_price","bid_amount"]
[1731764746372,0.03039222,3162.2,3161.7,0.3155]
[1731764746963,0.03039222,3162.2,3161.6,3.22612699]
[1731764747280,0.03039222,3162.2,3161.7,3.16278]
[1731764747581,0.55,3162.5,3161.8,0.06324552]
[1731764747879,3.16235,3162.2,3161.6,0.68842222]
[1731764748056,0.03013623,3162.1,3161.6,0.68842222]
[1731764748567,0.03013623,3162.1,3161.6,3.91461347]
[1731764748766,0.03013623,3162.1,3161.4,0.49495521]
[1731764748767,3.23100261,3162.1,3161.4,3.65809521]
[1731764748936,3.23100261,3162.1,3161.4,0.49495521]
[1731764748937,3.16275,3161.9,3161.4,0.49495521]
[1731764749124,3.23100261,3162.1,3161.4,0.49495521]
[1731764749331,0.03004557,3161.8,3161.4,0.49495521]
[1731764749530,3.20107638,3161.9,3161.4,0.49495521]
[1731764749727,0.03001534,3161.7,3161.4,0.49495521]
[1731764750194,0.03840638,3161.9,3161.4,0.49495521]
[1731764750195,3.16266,3161.9,3161.4,0.49495521]
[1731764750340,0.02996467,3161.6,3161.1,3.16345]
[1731764750546,3.16284,3161.8,3161.2,0.316345]
[1731764750769,0.02993444,3161.5,3161.2,0.316345]
[1731764751082,3.19307421,3161.4,3160.7,3.16385]
[1731764751404,3.16326,3161.3,3160.7,3.16385]
[1731764751552,0.02990421,3161.4,3160.7,3.16385]
[1731764751752,0.02983888,3161.2,3161.1,3.16343]
[1731764751957,0.03840638,3161.9,3161.2,3.16335]
[1731764752267,0.03002025,3161.8,3161.3,0.06325594]
[1731764752443,3.68185023,3163.1,3161.7,3.16285]
[1731764752444,0.03840638,3162.4,3161.7,3.16285]
[1731764752651,0.03840638,3162.5,3161.7,3.16285]
[1731764752884,3.20045638,3162.5,3161.7,0.632589]
[1731764753185,3.20045638,3162.5,3161.4,3.16311]
[1731764753186,3.16237,3162.2,3161.4,3.16311]
[1731764753380,3.16237,3162.2,3161.5,3.16304]
[1731764753580,0.03020155,3162.4,3161.6,0.0632482]
[1731764753581,0.03011091,3162.1,3161.6,0.0632482]
[1731764753758,0.03011091,3162.1,3162.0,3.16255]
[1731764753964,3.20004638,3163.0,3162.0,3.16255]
[1731764754186,0.03840638,3163.0,3162.1,0.316255]
[1731764754392,0.03035258,3162.9,3162.4,3.16215]
[1731764754680,0.03840638,3163.1,3162.6,3.16188]
[1731764754857,0.03840638,3163.1,3162.3,3.16224]
[1731764755052,3.16147,3163.1,3162.4,3.22533265]
[1731764755266,3.16156,3163.0,3162.5,0.63875726]
[1731764755453,3.16189,3162.7,3161.7,3.0]
[1731764755657,0.03026197,3162.6,3161.9,6.32516]
[1731764755885,3.19224197,3162.6,3161.9,3.16258]
[1731764756092,0.55,3162.6,3161.6,3.16287]
[1731764756385,3.16215,3162.4,3161.7,6.14099947]
[1731764756755,0.03017134,3162.3,3162.1,3.16237]
[1731764756961,0.03017134,3162.3,3162.2,0.37948184]
[1731764757290,3.16186,3162.7,3162.2,0.37948184]
[1731764757473,3.16186,3162.7,3162.2,0.06324484]
[1731764757651,0.55,3162.8,3162.2,0.06324484]
[1731764757850,0.03029218,3162.7,3162.2,0.06324484]
[1731764758168,3.16148,3163.1,3162.3,3.16219]
[1731764758371,0.03840638,3163.0,3161.9,3.47813]
[1731764758559,3.162,3162.6,3161.9,3.47813]
[1731764758762,3.20045638,3162.5,3161.8,3.0]
[1731764758965,3.16217,3162.4,3161.8,3.0]
[1731764759178,3.19997638,3163.0,3161.9,0.06324533]
[1731764759394,3.16157,3163.0,3162.3,3.1622]
[1731764759688,0.03840638,3163.1,3162.6,3.16194]
[1731764760188,0.55,3163.2,3162.6,3.16194]
[1731764760348,0.03840638,3163.1,3162.4,3.47763]
[1731764760548,0.03840638,3163.1,3162.4,4.141626]
[1731764760789,0.03840638,3163.1,3162.5,3.162]
[1731764761097,0.03840638,3163.1,3162.4,4.141626]
[1731764761261,0.03840638,3163.1,3162.6,3.16195]
[1731764761675,3.16157,3163.0,3162.3,0.3155]
[1731764761972,3.16211,3162.5,3161.8,4.09310195]
[1731764762172,0.55,3162.8,3162.0,3.16255]
[1731764762173,3.16179,3162.8,3162.0,3.16255]
[1731764762383,3.72025661,3163.1,3162.1,0.0632388]
[1731764762584,3.16173,3162.9,3162.2,3.16228]
[1731764762811,0.58840638,3162.8,3162.2,3.16228]
[1731764762979,0.03840638,3163.0,3162.2,3.794763]
[1731764763178,0.03840638,3163.0,3162.4,3.1621]
[1731764763373,3.19997638,3163.0,3162.4,3.1621]
[1731764763702,0.03840638,3163.0,3162.6,3.16188]
[1731764763876,0.55,3163.1,3162.6,3.48439146]
[1731764764078,0.55,3163.1,3162.6,3.16188]
[1731764764299,0.55,3163.1,3162.4,3.22535464]
[1731764764608,0.03840638,3163.0,3162.4,0.06323464]
[1731764764767,3.16222,3162.4,3161.5,3.16305]
[1731764764961,3.16222,3162.4,3161.6,3.616305]
[1731764765192,3.16222,3162.4,3161.8,3.16274]
[1731764765688,0.0301711,3162.3,3161.8,3.16274]
[1731764765893,3.16216,3162.4,3161.6,3.779245]
[1731764766097,0.0301711,3162.3,3161.7,0.3779245]
[1731764766405,0.0301711,3162.3,3161.7,3.5407745]
[1731764766609,0.06857748,3162.3,3161.7,3.16285]
[1731764767174,0.0301711,3162.3,3161.9,3.16265]
[1731764767376,0.0301711,3162.3,3161.8,0.0632473]
[1731764767608,0.03840638,3162.4,3161.7,3.1628]
[1731764767874,0.03012534,3162.3,3161.7,3.1628]
[1731764768096,0.55,3162.2,3161.2,3.16334]
[1731764768351,0.55,3162.2,3160.7,3.16377]
[1731764768352,3.16312,3161.5,3160.7,3.16377]
[1731764768616,0.55,3161.7,3161.3,3.16317]
[1731764768770,0.02985334,3161.4,3161.3,3.16317]
[1731764768974,0.55,3161.9,3161.3,3.16317]
[1731764769173,0.02985334,3161.4,3161.3,0.63898805]
[1731764769373,0.55,3161.7,3160.7,3.16383]
[1731764769619,3.16326,3161.3,3160.7,3.16383]
[1731764769818,3.16326,3161.3,3160.5,3.16404]
[1731764769819,3.16342,3161.2,3160.5,3.16404]
[1731764769989,3.16342,3161.2,3160.7,3.16383]
[1731764769990,0.02979288,3161.2,3160.7,3.16383]
[1731764770191,0.02979288,3161.2,3160.6,3.16395]
[1731764770192,3.71316,3161.4,3160.8,3.85975595]
[1731764770498,0.02982311,3161.3,3160.8,3.85975595]
[1731764770715,3.16359,3161.0,3160.4,0.144435]
[1731764770899,0.02970217,3160.9,3160.4,0.144435]
[1731764771075,0.58840638,3161.1,3160.5,3.16405]
[1731764771273,0.02973241,3161.0,3160.4,0.144435]
[1731764771506,3.16361,3161.0,3160.4,0.144435]
[1731764771685,0.02970217,3160.9,3160.4,0.144435]
[1731764771884,0.02970217,3160.9,3160.5,0.06327377]
[1731764772119,3.16345,3161.1,3160.5,3.22731377]
[1731764772304,3.16345,3161.1,3160.4,3.308565]
[1731764772471,0.02973241,3161.0,3160.6,3.1639]
[1731764772673,3.71335,3161.2,3160.6,3.1639]
[1731764773116,0.55,3161.2,3160.5,0.06327378]
[1731764773280,3.71336,3161.2,3160.5,3.22725279]
[1731764773481,3.71336,3161.2,3160.5,3.16398]
[1731764773482,3.23154064,3161.1,3160.5,3.16398]
[1731764773681,3.16356,3161.0,3160.4,3.28543447]
[1731764773909,3.16376,3160.8,3160.4,0.144435]
[1731764774123,0.06794968,3160.7,3160.4,0.144435]
[1731764774422,3.23180968,3160.7,3160.4,0.144435]
[1731764775028,3.16396,3160.6,3160.4,0.144435]
[1731764775251,3.20245638,3160.5,3160.4,0.144435]
[1731764775523,0.06774694,3160.5,3160.4,0.144435]
[1731764775819,0.06774694,3160.5,3160.4,3.6394635]
[1731764775820,0.02934056,3160.5,3160.4,3.6394635]
[1731764776310,0.02930548,3160.5,3160.4,0.4753135]
[1731764776517,3.16376,3160.8,3160.4,0.144435]
[1731764776724,3.23165235,3160.7,3160.4,0.144435]
[1731764777090,0.06777235,3160.7,3160.4,0.144435]
[1731764777278,3.16405,3160.5,3160.4,0.144435]
[1731764777479,3.19335548,3160.5,3160.4,0.144435]
[1731764779745,0.02930548,3160.5,3160.4,0.144435]
[1731764780322,3.19335548,3160.5,3160.4,0.144435]
[1731764784256,0.02930548,3160.5,3160.4,0.144435]
[1731764784567,0.02930548,3160.5,3160.4,3.308585]
[1731764784765,0.02930548,3160.5,3160.4,3.9558605]
[1731764784935,0.03840638,3161.2,3160.4,3.9558605]
[1731764785140,0.02943821,3161.1,3160.5,35.06327052]
[1731764785361,0.02943821,3161.1,3161.0,3.16355]
[1731764785560,0.03840638,3162.1,3161.1,0.3155]
[1731764785800,3.20086638,3162.1,3161.2,3.16335]
[1731764785964,3.20086638,3162.1,3161.7,3.16284]
[1731764785965,0.02880196,3162.0,3161.7,3.16284]
[1731764786301,0.02880196,3162.0,3161.3,0.41113794]
[1731764786302,0.02880196,3162.0,3161.8,0.06325194]
[1731764786447,3.16217,3162.4,3161.4,0.3155]
[1731764786647,3.16217,3162.4,3161.6,3.16288]
[1731764786648,0.03840638,3162.3,3161.6,3.16288]
[1731764786848,0.06736057,3162.3,3161.7,0.316288]
[1731764787091,0.06736057,3162.3,3161.7,3.16283]
[1731764787252,0.02895419,3162.3,3161.8,3.16266]
[1731764787450,0.02895419,3162.3,3162.2,3.16235]
[1731764787652,3.16167,3162.9,3162.2,3.79484]
[1731764787653,0.03840638,3162.8,3162.2,3.79484]
[1731764787896,0.03840638,3162.8,3162.2,3.16235]
[1731764788102,0.02927243,3162.7,3162.2,3.16235]
[1731764788278,0.02927243,3162.7,3162.0,3.16255]
[1731764788279,3.19113243,3162.7,3162.0,3.16255]
[1731764788463,0.02927243,3162.7,3162.2,3.16228]
[1731764788663,0.03840638,3162.8,3162.3,3.16224]
[1731764788871,0.02927243,3162.7,3162.5,3.162]
[1731764789071,0.03840638,3163.0,3162.5,3.162]
[1731764789304,0.02934163,3162.9,3162.5,3.162]
[1731764789613,3.19976638,3163.2,3162.5,3.162]
[1731764789766,0.0293378,3162.8,3162.5,3.162]
[1731764790112,0.0293076,3162.7,3162.3,3.16224]
[1731764790406,0.03840638,3163.0,3162.4,3.16214]
[1731764790608,0.02927739,3162.6,3162.4,3.16214]
[1731764790795,0.03840638,3163.0,3162.5,3.16205]
[1731764790964,0.02924719,3162.5,3162.3,3.794718]
[1731764791161,0.03840638,3163.0,3161.8,3.16272]
[1731764791162,3.16195,3162.6,3161.8,3.16272]
[1731764791362,3.16227,3162.3,3161.6,3.16293]
[1731764791692,3.16227,3162.3,3161.5,0.98550102]
[1731764791693,0.06865222,3162.2,3161.5,0.98550102]
[1731764791880,3.16215,3162.4,3161.6,3.16287]
[1731764792078,0.03840638,3162.3,3161.0,3.16355]
[1731764792287,0.06868459,3162.3,3161.6,3.16288]
[1731764792467,0.06868459,3162.3,3161.2,3.16332]
[1731764792663,0.03027821,3162.3,3160.4,0.7917105]
[1731764792888,0.55,3162.1,3160.9,3.16364]
[1731764793091,0.55,3162.1,3160.7,3.16378]
[1731764793092,3.16304,3161.6,3160.7,3.16378]
[1731764793329,3.23378007,3161.5,3160.7,3.16378]
[1731764793548,3.16316,3161.4,3160.7,3.16378]
[1731764793706,3.16316,3161.4,3160.5,3.16403]
[1731764793707,3.20166638,3161.3,3160.5,3.16403]
[1731764794034,0.03220905,3161.2,3160.6,0.3308465]
[1731764794253,3.19559905,3161.2,3160.6,0.3308465]
[1731764794751,0.03220905,3161.2,3160.4,0.144435]
[1731764794961,3.16297,3161.6,3160.4,0.144435]
[1731764794962,3.20185638,3161.1,3160.4,0.144435]
[1731764795245,3.16384,3160.8,3160.4,0.144435]
[1731764795547,0.03470414,3160.7,3160.4,0.144435]
[1731764795708,3.16397,3160.6,3160.4,0.144435]
[1731764795911,0.03462853,3160.5,3160.4,0.144435]
[1731764796769,3.23708491,3160.5,3160.4,0.144435]
[1731764799026,3.20245638,3160.5,3160.4,0.144435]
[1731764799536,0.03840638,3160.5,3160.4,0.144435]
[1731764799866,0.03840638,3160.8,3160.4,0.144435]
[1731764800272,0.04141482,3160.7,3160.4,0.4753125]
[1731764800451,0.04141482,3160.7,3160.4,0.144435]
[1731764800655,0.03840638,3161.0,3160.4,0.144435]
[1731764800959,0.03840638,3161.0,3160.4,3.308515]
[1731764801158,0.04150555,3160.9,3160.4,3.308515]
[1731764801459,0.04150555,3160.9,3160.5,3.22730871]
[1731764801670,0.04150555,3160.9,3160.6,3.50103437]
[1731764801960,3.17261,3162.0,3160.7,3.22710235]
[1731764801961,0.04146018,3160.8,3160.7,3.22710235]
[1731764802135,0.03840638,3161.8,3160.7,0.06327235]
[1731764802341,0.04171918,3161.7,3160.6,0.33717437]
[1731764802670,0.04171918,3161.7,3161.3,3.16316]
[1731764802823,0.04171918,3161.7,3160.4,0.144435]
[1731764803022,3.16341,3161.2,3160.4,0.144435]
[1731764803328,0.03767919,3161.1,3160.5,0.06327095]
[1731764803651,3.16246,3162.1,3161.2,3.16335]
[1731764803968,3.163,3161.6,3160.4,0.144435]
[1731764804174,3.163,3161.6,3160.8,3.16366]
[1731764804320,3.20095409,3161.5,3160.4,0.4588785]
[1731764804662,3.20095409,3161.5,3160.5,0.06326416]
[1731764804851,3.23936047,3161.5,3160.8,3.16375]
[1731764805026,0.07625047,3161.5,3160.8,3.16375]
[1731764805223,0.07625047,3161.5,3160.8,0.316375]
[1731764805465,3.23932047,3161.5,3160.8,3.16375]
[1731764806623,0.07625047,3161.5,3160.7,3.22710911]
[1731764806825,3.20097409,3161.5,3160.7,3.22710911]
[1731764807062,0.03840638,3161.4,3160.8,0.32271091]
[1731764807431,3.20155638,3161.4,3160.8,0.32271091]
[1731764807765,1.58821809,3164.9,3160.8,0.32271091]
[1731764807766,3.16277,3161.8,3161.1,3.16345]
[1731764807969,3.20097638,3162.0,3161.2,3.16333]
[1731764808121,3.16274,3161.9,3161.2,3.796017]
[1731764808329,0.03840638,3161.8,3161.2,3.796017]
[1731764809029,3.16274,3161.9,3161.2,3.796017]
[1731764809030,3.20114638,3161.9,3161.2,3.796017]
[1731764809366,3.20088638,3162.1,3161.3,3.5427817]
[1731764809664,3.20088638,3162.1,3161.3,0.3796017]
[1731764809889,3.20097638,3162.0,3161.4,3.16314]
[1731764810064,3.16268,3161.9,3161.1,3.16337]
[1731764810379,3.16286,3161.7,3161.0,3.16353]
[1731764810539,3.16286,3161.7,3161.1,0.316353]
[1731764810730,0.03840638,3161.9,3160.8,0.3155]
[1731764810927,3.16252,3162.1,3160.8,0.3155]
[1731764811272,3.16236,3162.2,3161.5,3.16303]
[1731764811453,0.03840638,3162.3,3161.6,3.16293]
[1731764811778,0.03840638,3162.3,3161.7,3.16283]
[1731764811987,3.16196,3162.6,3161.7,3.16283]
[1731764812134,3.16196,3162.6,3161.9,3.16265]
[1731764812334,3.16196,3162.6,3161.9,3.22589629]
[1731764812561,3.20046638,3162.5,3161.7,3.16283]
[1731764812749,0.03840638,3162.5,3161.7,3.8586777]
[1731764813075,0.03840638,3162.5,3161.9,3.16259]
[1731764813229,3.16175,3162.8,3162.0,0.06324665]
[1731764813430,3.20015638,3162.8,3162.1,3.16237]
[1731764813736,3.20015638,3162.8,3162.2,0.316237]
[1731764814362,3.16156,3163.0,3162.3,0.06323922]
[1731764814562,3.16156,3163.0,3162.4,3.16214]
[1731764814733,3.16193,3162.7,3162.2,0.316237]
[1731764815059,3.16193,3162.7,3162.0,3.47796]
[1731764815469,3.16165,3162.9,3162.2,3.16228]
[1731764815682,3.16165,3162.9,3162.0,3.47796]
[1731764815683,0.03840638,3162.8,3162.0,3.47796]
[1731764815857,0.03840638,3162.8,3162.1,3.87340649]
[1731764815858,3.16182,3162.8,3162.1,3.87340649]
[1731764816291,3.01,3163.6,3162.1,0.647796]
[1731764816292,0.03840638,3162.7,3162.1,0.647796]
[1731764816596,3.19977638,3163.2,3162.1,0.647796]
[1731764816896,3.19977638,3163.2,3162.2,0.3155]
[1731764816897,3.16194,3162.7,3162.2,0.3155]
[1731764817106,0.03840638,3163.1,3162.3,3.22541411]
[1731764817258,0.03840638,3163.1,3162.4,0.35409141]
[1731764818158,3.16098,3163.6,3162.8,3.16172]
[1731764818159,3.16124,3163.4,3162.8,3.16172]
[1731764818399,3.16123,3163.4,3162.6,3.16195]
[1731764818591,3.16126,3163.3,3162.7,0.3225184]
[1731764818892,3.16126,3163.3,3162.6,3.16187]
[1731764819367,3.16142,3163.2,3162.4,3.47764]
[1731764819568,3.16124,3163.4,3162.6,3.16193]
[1731764819903,3.16095,3163.6,3162.4,3.47764]
[1731764819904,3.16107,3163.5,3162.8,3.1617]
[1731764820085,3.16126,3163.3,3162.7,3.22498743]
[1731764820257,3.16126,3163.3,3162.4,3.4776]
[1731764820258,3.16135,3163.2,3162.8,0.32249874]
[1731764820462,3.16123,3163.4,3162.8,0.32249874]
[1731764820798,0.03840638,3163.3,3162.3,5.0]
[1731764821010,3.16207,3162.5,3162.3,5.0]
[1731764821296,3.16215,3162.4,3162.3,5.0]
[1731764821768,0.03840638,3162.5,3162.3,5.0]
[1731764821961,0.03840638,3162.6,3162.3,5.0]
[1731764822389,3.16215,3162.4,3162.3,5.0]
[1731764825672,3.16211,3162.5,3162.3,5.0]
[1731764825874,3.03840638,3163.0,3162.3,5.0]
[1731764826273,3.16165,3162.9,3162.3,5.0]
[1731764826597,3.16214,3162.5,3162.3,5.0]
[1731764826807,3.16215,3162.4,3162.3,5.0]
[1731764827319,3.20035638,3162.6,3162.3,5.0]
[1731764827320,3.16205,3162.5,3162.3,5.0]
[1731764828179,3.16215,3162.4,3162.3,5.0]
[1731764829386,6.16215,3162.4,3162.3,5.0]
[1731764829612,6.20055638,3162.4,3162.3,5.0]
[1731764830227,3.56,3162.3,3160.4,3.308585]
[1731764830532,3.16337,3161.2,3160.5,0.39512962]
[1731764830756,3.16337,3161.2,3160.5,3.22731312]
[1731764831043,3.16356,3161.0,3160.4,0.144435]
[1731764831421,3.20176638,3161.2,3160.4,3.308575]
[1731764831748,3.16404,3160.6,3160.4,0.144435]
[1731764831949,3.16376,3160.8,3160.4,0.144435]
[1731764832153,0.03840638,3161.0,3160.4,0.144435]
[1731764832336,3.20150638,3161.5,3160.6,3.16393]
[1731764832535,3.16337,3161.2,3160.6,3.16393]
[1731764832847,3.20186638,3161.1,3160.5,0.3308625]
[1731764833080,3.20186638,3161.1,3160.4,0.144435]
[1731764833081,0.03840638,3161.1,3160.4,0.144435]
[1731764833205,3.16405,3160.5,3160.4,0.144435]
[1731764834312,4.68458389,3166.9,3160.4,0.144435]
[1731764834313,0.01,3161.6,3160.4,0.144435]
[1731764834509,3.16375,3160.8,3160.4,0.144435]
[1731764834845,3.20226638,3160.7,3160.4,0.144435]
[1731764835615,3.16405,3160.5,3160.4,0.144435]
[1731764836632,3.20226638,3160.7,3160.4,0.144435]
[1731764836970,3.16405,3160.5,3160.4,0.144435]
[1731764840502,3.71405,3160.5,3160.4,0.144435]
[1731764842581,6.71405,3160.5,3160.4,0.144435]
[1731764843298,3.0,3160.5,3160.4,0.144435]
[1731764843587,0.03840638,3160.6,3160.4,0.144435]
[1731764844094,3.16405,3160.5,3160.4,0.144435]
[1731764844396,6.16405,3160.5,3160.4,0.144435]
[1731764844693,6.71405,3160.5,3160.4,0.144435]
[1731764848217,3.20237638,3160.6,3160.4,0.144435]
[1731764848376,3.16405,3160.5,3160.4,0.144435]
[1731764849611,6.71405,3160.5,3160.4,0.144435]
[1731764850002,6.72405,3160.5,3160.4,0.144435]
[1731764850721,6.71405,3160.5,3160.4,0.144435]
[1731764854421,6.73405,3160.5,3160.4,5e-06]
[1731764854622,6.77245638,3160.5,3160.4,5e-06]
[1731764855354,6.76245638,3160.5,3160.4,5e-06]
[1731764855740,6.75245638,3160.5,3160.4,5e-06]
[1731764856126,3.20245638,3160.5,3160.4,5e-06]
[1731764856355,3.16405,3160.5,3160.4,5e-06]
[1731764857324,6.16405,3160.5,3160.4,5e-06]
[1731764857851,6.75245638,3160.5,3160.4,5e-06]
[1731764859927,3.20245638,3160.5,3160.4,5e-06]
[1731764861630,3.75245638,3160.5,3160.4,5e-06]
[1731764862453,6.75245638,3160.5,3160.4,5e-06]
[1731764872985,3.75245638,3160.5,3160.4,5e-06]
[1731764876478,6.75245638,3160.5,3160.4,5e-06]
[1731764877808,6.76245638,3160.5,3160.4,5e-06]
[1731764879795,6.75245638,3160.5,3160.4,5e-06]
[1731764880101,6.76245638,3160.5,3160.4,5e-06]
[1731764881686,9.80785733,3160.5,3160.4,5e-06]
[1731764881857,9.76945095,3160.5,3160.4,5e-06]
[1731764882060,6.72405,3160.5,3160.4,5e-06]
[1731764882271,9.80785733,3160.5,3160.4,5e-06]
[1731764882472,6.72405,3160.5,3160.4,5e-06]
[1731764882689,6.76245638,3160.5,3160.4,5e-06]
[1731764883702,3.16562,3159.0,3158.3,3.48174]
[1731764883903,3.16562,3159.0,3158.4,3.514314]
[1731764884308,3.20388638,3159.1,3158.4,3.514314]
[1731764884525,3.16562,3159.0,3158.4,0.348174]
[1731764884832,0.03840638,3159.1,3158.5,3.16605]
[1731764884833,3.16546,3159.1,3158.5,3.16605]
[1731764885035,0.03840638,3159.0,3158.4,3.16612]
[1731764885910,0.03840638,3159.0,3158.3,3.48166]
[1731764886236,0.03840638,3159.0,3158.4,3.514266]
[1731764886421,0.03840638,3159.0,3158.6,3.16589]
[1731764886617,0.03840638,3159.1,3158.6,3.16589]
[1731764887340,3.16536,3159.2,3158.6,3.16589]
[1731764887695,3.16573,3158.9,3158.4,0.348166]
[1731764888002,3.16573,3158.9,3158.2,3.16635]
[1731764888195,0.03840638,3159.0,3158.3,3.16618]
[1731764888411,0.03840638,3159.0,3158.2,3.16635]
[1731764888645,0.03840638,3159.0,3158.4,3.16611]
[1731764888831,3.20398638,3159.0,3158.5,0.316611]
[1731764889357,3.16578,3158.8,3158.5,0.316611]
[1731764889557,3.16578,3158.8,3158.2,3.16635]
[1731764889850,0.03840638,3159.0,3158.0,0.62959633]
[1731764890057,3.16539,3159.2,3158.5,3.16605]
[1731764890213,3.16539,3159.2,3158.6,3.16594]
[1731764890413,3.16539,3159.2,3158.5,0.38625044]
[1731764890624,3.16539,3159.2,3158.6,3.16594]
[1731764890859,3.08380733,3159.1,3157.8,3.16669]
[1731764891182,3.08380733,3159.1,3157.6,4.432527]
[1731764891183,3.16577,3158.8,3157.9,3.54664201]
[1731764891358,3.16607,3158.5,3157.9,0.316669]
[1731764891866,0.03840638,3158.7,3157.9,0.326669]
[1731764892075,3.16574,3158.9,3158.0,0.06331522]
[1731764892239,3.16574,3158.9,3158.2,3.16635]
[1731764892554,3.16574,3158.9,3158.3,3.2295468]
[1731764892754,3.16574,3158.9,3158.4,0.63958968]
[1731764893658,3.20367638,3159.3,3158.6,3.16592]
[1731764893961,3.16527,3159.3,3158.6,3.16592]
[1731764894291,3.16526,3159.3,3158.7,0.06330822]
[1731764894443,3.20366638,3159.3,3158.5,3.16598]
[1731764894649,3.20366638,3159.3,3158.6,3.482478]
[1731764895180,3.16507,3159.5,3158.7,3.16576]
[1731764895479,3.16516,3159.4,3158.8,3.16574]
[1731764895701,3.16516,3159.4,3158.9,0.63315]
[1731764895909,3.16516,3159.4,3158.8,3.16574]
[1731764896061,3.16516,3159.4,3158.6,3.482548]
[1731764896386,3.16541,3159.2,3158.6,0.316598]
[1731764896584,3.16541,3159.2,3158.5,0.0633032]
[1731764896884,3.16563,3159.0,3158.5,0.0633032]
[1731764897086,3.16576,3158.8,3158.2,3.16635]
[1731764897245,3.45783676,3158.7,3158.1,3.25645]
[1731764897450,0.29197676,3158.6,3158.2,0.38896216]
[1731764897645,3.20411638,3158.9,3158.3,3.16625]
[1731764897887,0.29189852,3158.8,3158.3,3.16625]
[1731764898045,3.16546,3159.1,3158.4,3.16614]
[1731764898246,3.45746939,3159.0,3158.4,3.5153185]
[1731764898501,0.29189939,3158.9,3158.4,3.5153185]
[1731764898832,0.29189939,3158.8,3158.4,3.5153185]
[1731764898995,0.29189939,3158.7,3158.4,3.5153185]
[1731764899343,0.29189939,3158.6,3158.5,0.35153185]
[1731764899840,0.29188165,3158.6,3158.5,0.35153185]
[1731764899992,3.16555,3159.1,3158.5,0.35153185]
[1731764900192,0.95665344,3159.0,3158.6,0.06331194]
[1731764900412,0.95665344,3158.9,3158.6,0.06331194]
[1731764900631,0.95665344,3158.8,3158.6,0.06331194]
[1731764900866,0.75886358,3158.7,3158.5,0.4148452]
[1731764901009,0.75886358,3158.6,3158.5,0.35153185]
[1731764901212,0.95665653,3158.6,3158.1,3.26643]
[1731764901522,0.48644917,3158.4,3158.1,3.26643]
[1731764901721,1.4431057,3158.3,3158.1,3.16643]
[1731764901931,0.48644917,3158.3,3158.2,0.325643]
[1731764902240,0.95659927,3158.3,3158.2,0.325643]
[1731764902590,0.95659927,3158.3,3158.2,3.16636]
[1731764903219,0.95659927,3158.3,3158.0,3.16655]
[1731764903405,0.48647541,3158.1,3158.0,3.16655]
[1731764903605,1.44307468,3158.1,3158.0,3.16655]
[1731764903809,1.44307468,3158.1,3158.0,3.800877]
[1731764904336,0.95659927,3158.1,3157.8,3.17672]
[1731764904538,0.95659927,3158.0,3157.9,3.16666]
[1731764906311,0.48988747,3158.0,3157.6,0.01]
[1731764906535,0.95720578,3157.9,3157.8,3.16676]
[1731764907247,0.95720578,3157.9,3157.8,3.801119]
[1731764908450,0.95720578,3157.9,3157.8,3.86444515]
[1731764909036,0.95720578,3157.9,3157.8,3.87444515]
[1731764909459,1.44386652,3157.9,3157.8,3.811119]
[1731764909637,0.87592773,3158.9,3158.4,3.16615]
[1731764909841,0.48989683,3158.8,3158.4,3.16615]
[1731764910155,0.95726157,3158.7,3158.4,3.16615]
[1731764910327,0.95726157,3158.7,3158.0,0.01]
[1731764910328,1.63539543,3158.6,3158.0,0.01]
[1731764910650,0.95726157,3158.5,3158.4,3.16613]
[1731764910814,1.83387745,3158.5,3158.4,3.16613]
[1731764911361,0.95726157,3158.5,3158.4,3.16613]
[1731764911513,0.95726157,3158.5,3158.0,3.16655]
[1731764911717,0.95726157,3158.4,3158.3,3.16626]
[1731764912748,0.95726157,3158.4,3158.2,3.22965672]
[1731764912913,0.95772342,3158.3,3158.2,3.22965672]
[1731764913120,0.95772342,3158.3,3158.2,0.06331672]
[1731764913567,0.95772342,3158.3,3157.9,3.16665]
[1731764913864,0.48714263,3158.0,3157.9,3.16665]
[1731764914164,1.44486605,3158.0,3157.9,3.16665]
[1731764914316,0.75992551,3158.0,3157.7,3.16682]
[1731764914518,0.75992551,3157.9,3157.8,3.16676]
[1731764915457,0.29227904,3157.9,3157.8,3.16676]
[1731764916160,0.48708803,3158.5,3158.0,3.16653]
[1731764916346,0.75985684,3158.4,3158.0,3.16653]
[1731764916549,0.75985684,3158.3,3158.0,3.16653]
[1731764916750,0.75976693,3158.3,3158.0,3.16653]
[1731764916947,0.75976693,3158.2,3158.0,3.16653]
[1731764917141,0.75976693,3158.1,3158.0,3.16653]
[1731764917866,0.29221805,3158.1,3158.0,3.16653]
[1731764918469,0.75977394,3158.1,3158.0,3.16653]
[1731764918860,0.75977394,3158.1,3157.8,3.16676]
[1731764919180,0.29221805,3158.0,3157.9,3.16666]
[1731764920160,0.29221805,3158.0,3157.5,38.66239785]
[1731764920368,3.16552,3159.1,3157.5,0.49539785]
[1731764920369,0.29221805,3157.9,3157.5,0.49539785]
[1731764920538,3.16652,3158.1,3157.5,0.49539785]
[1731764920539,0.29221805,3157.8,3157.6,0.06333067]
[1731764920742,0.29221805,3157.7,3157.5,3.66245785]
[1731764920973,0.29221805,3157.6,3157.5,3.66245785]
[1731764921303,0.29221805,3157.6,3157.5,0.49539785]
[1731764921465,0.29221805,3157.6,3157.4,3.16712]
[1731764921672,3.16626,3158.3,3157.6,3.16692]
[1731764921976,3.16626,3158.3,3157.7,3.23010011]
[1731764921977,0.29215404,3158.2,3157.7,3.23010011]
[1731764922295,3.16626,3158.3,3157.7,3.23010011]
[1731764922296,0.29215404,3158.1,3157.7,3.23010011]
[1731764922461,3.20449638,3158.5,3157.7,3.23010011]
[1731764922462,0.29215404,3158.0,3157.7,3.23010011]
[1731764922662,0.29215404,3157.9,3157.7,0.06333011]
[1731764922859,0.29215404,3157.8,3157.5,3.16697]
[1731764923161,0.2921154,3157.7,3157.6,3.2302817]
[1731764923391,3.16617,3158.4,3157.8,3.16674]
[1731764923702,0.29208958,3158.3,3157.9,0.06332569]
[1731764923872,3.16617,3158.4,3157.9,0.06332569]
[1731764923873,0.29208958,3158.2,3157.9,0.06332569]